[Event "Coimbra Queima Fitas Open 2024"]
[Site "Coimbra"]
[Date "2024.04.26"]
[Round "3.9"]
[White "Moldovan, Lucas Gabriel"]
[Black "Gama, Edivaldo Pereira Da"]
[Result "0-1"]
[ECO "B07"]
[WhiteElo "1884"]
[BlackElo "2109"]
[Annotator "RC"]
[PlyCount "60"]
[EventDate "2024.04.23"]
[EventType "swiss"]
[EventCountry "POR"]
[SourceTitle "playchess.com"]
[Source "ChessBase"]
[SourceQuality "1"]
[TimeControl "5400+30"]

1. e4 {[%emt 0:00:03]} d6 {[%emt 0:00:15]} 2. d4 {[%emt 0:00:28]} Nf6 {[%emt 0:00:14]} 3. Nc3 {[%emt 0:00:34]} c6 {[%emt 0:00:19]} 4. f3 {[%emt 0:01:32]} Qc7 {[%emt 0:00:16]} 5. Be3 {[%emt 0:01:18]} a5 {[%emt 0:00:30]} 6. d5 a4 {[%emt 0:00:34]} 7. a3 {[%emt 0:13:38]} g6 {[%emt 0:01:23]} 8. Qd2 {[%emt 0:03:39]} Bg7 {[%emt 0:01:35]} 9. O-O-O {[%emt 0:06:25]} h5 {[%emt 0:00:32]} 10. h4 {[%emt 0:09:57]} Nbd7 {[%emt 0:01:34]} 11. Be2 {[%emt 0:06:19]} Ne5 {[%emt 0:00:17]} 12. Nh3 {[%emt 0:06:04]} Bd7 {[%emt 0:02:10]} 13. Nf2 {[%emt 0:01:58]} cxd5 {[%emt 0:00:45]} 14. Nxd5 {[%emt 0:02:02]} Nxd5 {[%emt 0:00:45]} 15. exd5 {[%emt 0:00:03]} Nc4 {[%emt 0:00:38]} 16. Bxc4 {[%emt 0:00:07]} Qxc4 {[%emt 0:00:03]} 17. Kb1 {[%emt 0:01:53]} Bf5 {[%emt 0:01:28]} 18. Bd4 {[%emt 0:01:27]} Bxd4 {[%emt 0:04:08]} 19. Qxd4 {[%emt 0:00:04]} Bxc2+ {[%emt 0:00:38]} 20. Ka1 {[%emt 0:00:02]} Qxd4 {[%emt 0:01:13]} 21. Rxd4 {[%emt 0:00:03]} Rc8 {[%emt 0:00:02]} 22. Re1 {[%emt 0:04:05]} Bb3 {[%emt 0:02:08]} 23. Ne4 {[%emt 0:01:48]} Rc2 {[%emt 0:08:51]} 24. Nxd6+ {[%emt 0:02:58]} Kd7 {[%emt 0:00:29]} 25. Nxf7 {[%emt 0:02:27]} Rhc8 {[%emt 0:00:10]} 26. Kb1 {[%emt 0:00:06]} Rxg2 {[%emt 0:00:55]} 27. d6 {[%emt 0:01:23]} exd6 {[%emt 0:02:08]} 28. Nxd6 {[%emt 0:17:17]} Rcc2 {[%emt 0:02:36]} 29. Nf7+ {[%emt 0:00:14]} Kc7 {[%emt 0:05:45]} 30. Re7+ {[%emt 0:00:38]} Kb8 {[%emt 0:00:22]} 0-1

[Event "Coimbra Queima Fitas Open 2024"]
[Site "Coimbra"]
[Date "2024.04.26"]
[Round "3.10"]
[White "Novais, Carlos Joao Fernande"]
[Black "Bastiao, Tomas De Oliveira"]
[Result "1-0"]
[ECO "B38"]
[WhiteElo "2101"]
[BlackElo "1875"]
[Annotator "TA"]
[PlyCount "93"]
[EventDate "2024.04.23"]
[EventType "swiss"]
[EventCountry "POR"]
[SourceTitle "playchess.com"]
[Source "ChessBase"]
[SourceQuality "1"]
[TimeControl "5400+30"]

{[%evp 11,93,41,43,35,45,40,41,34,50,43,43,35,62,64,68,67,78,63,85,85,77,80,103,98,97,75,133,162,153,123,131,133,137,100,145,129,255,248,257,109,106,106,233,224,261,262,240,256,229,90,84,81,94,89,129,64,72,72,72,72,72,63,95,95,360,190,800,268,858,387,393,387,898,896,870,858,29974,29975,29976,29977,29991,29992,29992,29993]} 1. e4 {[%emt 0:00:03]} c5 {[%emt 0:01:03]} 2. Nf3 {[%emt 0:00:13]} Nc6 {[%emt 0:00:12]} 3. d4 {[%emt 0:00:07]} cxd4 {[%emt 0:00:04]} 4. Nxd4 {[%emt 0:00:04]} g6 {[%emt 0:00:05]} 5. c4 {[%emt 0:00:14]} Bg7 {[%emt 0:00:04]} 6. Be3 {[%emt 0:00:06]} Qb6 {[%emt 0:00:04][%csl LRb2,LRd4]} 7. Nb3 {[%emt 0:00:05]} Qd8 {[%emt 0:00:03]} 8. Qd2 {[%emt 0:00:34]} Nf6 {[%emt 0:01:53]} 9. f3 {[%emt 0:00:35] White is slightly better.} d6 {[%emt 0:01:02]} 10. Nc3 {[%emt 0:00:06]} O-O {[%emt 0:08:58]} 11. Rc1 {[%emt 0:03:27]} b6 {[%emt 0:06:35]} 12. Be2 {[%emt 0:01:15]} Ba6 {[%emt 0:02:20]} 13. O-O {[%emt 0:09:44]} Rc8 {[%emt 0:11:25]} 14. Na1 {[%emt 0:03:55]} h5 {[%emt 0:10:29]} 15. Nc2 {[%emt 0:05:12]} Ne5 {[%emt 0:09:11]} 16. b3 {[%emt 0:00:27]} Qd7 {[%emt 0:06:44]} 17. Nb4 {[%emt 0:02:40]} Bb7 {[%emt 0:00:22]} 18. a4 {[%emt 0:00:08]} a5 {[%emt 0:04:14]} (18... Nc6 $142) 19. Nbd5 $16 {[%emt 0:00:29]} Bxd5 {[%emt 0:00:18]} 20. cxd5 {[%emt 0:00:12]} Qb7 {[%emt 0:00:51]} 21. Nb5 {[%emt 0:04:32]} Ned7 {[%emt 0:00:49]} 22. Nd4 {[%emt 0:00:58] White has more active pieces.} Nc5 {[%emt 0:00:08]} 23. Bb5 {[%emt 0:04:30]} e5 {[%emt 0:04:58]} (23... Ne8 $16) 24. dxe6 $18 {[%emt 0:00:46]} fxe6 {[%emt 0:03:55] [#]} 25. b4 {[%emt 0:06:01]} (25. Rxc5 $1 $18 {is the precise move to win.} dxc5 26. Nxe6) 25... axb4 $16 {[%emt 0:01:36]} 26. Qxb4 {[%emt 0:00:12]} d5 {[%emt 0:07:55]} (26... Qf7 $16 27. Qa3 Nfd7) 27. e5 $18 {[%emt 0:05:06]} Nfd7 {[%emt 0:10:59]} 28. Bxd7 {[%emt 0:01:25]} (28. f4 Bh6 $18) 28... Qxd7 {[%emt 0:00:23]} 29. Qxb6 {[%emt 0:00:10]} Nd3 {[%emt 0:03:49]} 30. Rcd1 {[%emt 0:06:37]} (30. Qxe6+ Qxe6 31. Nxe6 Nxc1 32. Nxf8 (32. Bxc1 $2 Rf5 $19) 32... Ne2+ 33. Kf2 Rc2 $11) (30. Rxc8 $18 {has better winning chances.} Rxc8 31. f4 (31. Nxe6 Bxe5 32. f4 Bd6 $16) (31. Qxe6+ Qxe6 32. Nxe6 Bxe5 $14)) 30... Nxe5 $16 {[%emt 0:01:12]} 31. Qxe6+ {[%emt 0:00:16]} (31. Nxe6 Rf6 32. Nc5 Rxb6 $17) 31... Qf7 {[%emt 0:00:52]} 32. Qxf7+ {[%emt 0:00:42]} Rxf7 {[%emt 0:01:09]} 33. Nb5 {[%emt 0:01:04]} (33. Ne6 $16) 33... Nc4 $14 {[%emt 0:00:10]} 34. Bd4 {[%emt 0:00:26]} Ra8 {[%emt 0:02:48]} 35. Bxg7 {[%emt 0:04:44]} Kxg7 36. Ra1 {[%emt 0:00:13]} (36. Rxd5 Ne3 (36... Rxa4 37. Re1 $14) 37. Rd4 Nxf1 38. Kxf1 Rc8 $11) 36... Ne3 {[%emt 0:00:44]} 37. Rfb1 {[%emt 0:00:49]} Rf4 $2 {[%emt 0:00:43][%mdl 8192] [#]} (37... Rb7 $16 {was worth a try.}) 38. a5 {[%emt 0:00:51]} (38. Nc7 $142 Raxa4 39. Ne6+ Kh6 40. Nxf4 Rxf4 41. Rb6) 38... d4 $2 {[%emt 0:00:32]} (38... Rc4 39. a6 d4) 39. Ra4 $2 {[%emt 0:01:05]} (39. Nc7 Rxa5 40. Rxa5) 39... Nc2 $2 {[%emt 0:00:38]} (39... Ra6 40. Nxd4 (40. Rxd4 Rxd4 41. Nxd4 Rxa5 $14) 40... Nd5) 40. a6 {[%emt 0:00:20]} (40. Nc7 $142) 40... Rf7 $18 {[%emt 0:00:26]} 41. Nd6 {[%emt 0:01:27]} ({Not} 41. Nxd4 Nxd4 42. Rxd4 Rxa6 $14) 41... Rd7 {[%emt 0:00:16]} (41... Rfa7 42. Rb7+ Kh6 43. Rxa7 Rxa7) 42. Rb7 {[%emt 0:00:12]} Rxb7 {[%emt 0:01:00]} 43. axb7 {[%emt 0:00:11]} ({Less strong is} 43. Nxb7 d3 44. Kf2 Re8 $16) 43... Rxa4 {[%emt 0:00:24]} 44. b8=Q {[%emt 0:00:09] White mates.} (44. b8=B $2 {is the wrong capture.} Ne3 45. Kf2 Ra2+ 46. Kg3 d3 $19 (46... Rxg2+ $2 47. Kf4 $19) (46... Nxg2 $2 47. Ne4 $19)) 44... Ra1+ {[%emt 0:00:32]} 45. Kf2 {[%emt 0:00:06]} d3 {[%emt 0:00:01]} 46. Qc7+ {[%emt 0:00:19]} Kf6 {[%emt 0:00:27]} 47. Ne4+ {[%emt 0:00:12] Weighted Error Value: White=0.45/Black=0.47.  Loses game:     	---       	Black=1      Mistake:       	White=5     	Black=6      Inaccurate:     	---       	Black=4      OK:         	White=16    	Black=10     Best:        	White=5     	Black=2} 1-0

[Event "Coimbra Queima Fitas Open 2024"]
[Site "Coimbra"]
[Date "2024.04.26"]
[Round "3.11"]
[White "Figueiredo, Mario Jose Da Rocha"]
[Black "Vasconcelos, Paulo Jorge Lopes De"]
[Result "1/2-1/2"]
[ECO "E92"]
[WhiteElo "1874"]
[BlackElo "2093"]
[Annotator "TA"]
[PlyCount "47"]
[EventDate "2024.04.23"]
[EventType "swiss"]
[EventCountry "POR"]
[SourceTitle "playchess.com"]
[Source "ChessBase"]
[SourceQuality "1"]
[TimeControl "5400+30"]

{[%evp 24,47,121,118,390,-82,-81,-76,49,49,43,46,47,37,41,0,0,0,0,0,0,0,0,0,0,0]} 1. d4 {[%emt 0:00:11]} Nf6 {[%emt 0:00:04]} 2. Nf3 {[%emt 0:00:12]} g6 {[%emt 0:00:06]} 3. c4 {[%emt 0:00:12]} Bg7 {[%emt 0:00:04]} 4. Nc3 {[%emt 0:00:14]} d6 {[%emt 0:00:07]} 5. e4 {[%emt 0:00:25]} O-O {[%emt 0:00:08]} 6. Be2 {[%emt 0:00:23]} e5 {[%emt 0:00:50]} 7. dxe5 {[%emt 0:02:12]} dxe5 {[%emt 0:00:06]} 8. Qxd8 {[%emt 0:00:18]} Rxd8 {[%emt 0:00:03]} 9. Bg5 {[%emt 0:00:19]} Re8 {[%emt 0:01:37]} 10. O-O-O {[%emt 0:00:59]} c6 {[%emt 0:22:10]} 11. Nxe5 {[%emt 0:01:45]} Nxe4 {[%emt 0:07:50]} 12. Nxe4 {[%emt 0:01:14]} Bxe5 {[%emt 0:00:41] [#]} 13. f4 $1 {[%emt 0:02:20] White is more active.} f6 {[%emt 0:06:10][%mdl 8192]} 14. Nxf6+ $2 {[%emt 0:11:46]} ({White must play} 14. fxe5 $18 fxg5 15. Nf6+ (15. Nxg5 Nd7 $16) 15... Kf7 16. Nxe8 (16. Nxh7 Kg7 $14) 16... Kxe8 17. e6) 14... Bxf6 $17 {[%emt 0:00:08]} 15. Bxf6 {[%emt 0:00:08] And now Bf3 would win.} Nd7 {[%emt 0:00:54] [#]} ({Black should play} 15... Rxe2 $17 16. Rd8+ Kf7 17. Rxc8 Kxf6) 16. Be5 $1 $14 {[%emt 0:00:55]} Nxe5 {[%emt 0:02:21]} 17. fxe5 {[%emt 0:00:06]} Bf5 {[%emt 0:04:01]} 18. g4 $1 {[%emt 0:05:45]} Be4 {[%emt 0:02:51]} 19. Rhe1 {[%emt 0:02:47]} Rxe5 {[%emt 0:03:07] The position is equal.} 20. b3 {[%emt 0:15:01]} Rae8 {[%emt 0:00:43][%cal Oe4f3] ...Bf3! is the strong threat.} 21. Bd3 {[%emt 0:17:16]} Bf3 {[%emt 0:00:17]} 22. Rxe5 {[%emt 0:00:14]} Rxe5 {[%emt 0:00:09]} 23. Rg1 {[%emt 0:00:48]} c5 {[%emt 0:01:11]} 24. g5 {[%emt 0:03:13] Weighted Error Value: White=0.64/Black=0.56.  Missed win:     	White=1     	---        Mistake:       	---       	Black=1      Inaccurate:     	White=1     	---        OK:         	White=3     	Black=6      Strong:       	White=1     	---        Brilliant:      	White=1     	---} 1/2-1/2

[Event "Coimbra Queima Fitas Open 2024"]
[Site "Coimbra"]
[Date "2024.04.26"]
[Round "3.12"]
[White "Simoes, Miguel Caldeira"]
[Black "Ledas, Armandas"]
[Result "1-0"]
[ECO "B35"]
[WhiteElo "2084"]
[BlackElo "1851"]
[Annotator "TA"]
[PlyCount "79"]
[EventDate "2024.04.23"]
[EventType "swiss"]
[EventCountry "POR"]
[SourceTitle "playchess.com"]
[Source "ChessBase"]
[SourceQuality "1"]
[TimeControl "5400+30"]

{[%evp 14,79,16,13,33,11,12,11,26,26,84,80,96,52,31,14,103,96,293,296,383,434,425,453,447,431,455,464,445,455,763,776,764,762,760,469,467,314,344,318,306,368,399,396,420,416,1044,1043,5797,5465,2823,2414,29973,29974,29987,29988,29987,29988,29993,29994,29995,29995,29995,29996,29996,29995,29997,29998]} 1. e4 {[%emt 0:00:02]} c5 {[%emt 0:00:11]} 2. Nf3 {[%emt 0:01:38]} Nc6 {[%emt 0:00:30]} 3. d4 {[%emt 0:00:10]} cxd4 {[%emt 0:00:17]} 4. Nxd4 {[%emt 0:00:07]} g6 {[%emt 0:00:18]} 5. Nc3 {[%emt 0:00:14]} Bg7 {[%emt 0:00:16]} 6. Be3 {[%emt 0:00:10]} Nf6 {[%emt 0:00:32]} 7. Bc4 {[%emt 0:00:08]} O-O {[%emt 0:00:11]} 8. Bb3 {[%emt 0:00:08]} Re8 {[%emt 0:00:17]} 9. O-O {[%emt 0:00:49]} d6 {[%emt 0:10:45]} 10. h3 {[%emt 0:00:36]} a6 {[%emt 0:02:59] The position is equal.} 11. f4 {[%emt 0:03:52][%cal Oe4e5]} Nd7 {[%emt 0:07:28]} (11... e6 $11) 12. f5 $16 {[%emt 0:27:08]} Nce5 {[%emt 0:12:50]} 13. fxg6 {[%emt 0:03:47] White is much more active.} hxg6 {[%emt 0:00:16]} 14. Nf3 {[%emt 0:17:50]} Rf8 {[%emt 0:12:22]} (14... e6 $1 $11 {keeps the balance.}) 15. Ng5 $1 {[%emt 0:02:40] Qe1 would now be deadly.} Nf6 $2 {[%emt 0:05:39] [#] A mistake that costs the game.} (15... Bf6 $16) 16. Qe1 $1 $18 {[%emt 0:00:55]} Re8 {[%emt 0:08:47]} 17. Qh4 {[%emt 0:00:57]} b5 {[%emt 0:05:13]} 18. Bd4 {[%emt 0:03:14] Bxe5 is the strong threat.} e6 {[%emt 0:01:09]} 19. Bxe5 {[%emt 0:02:56]} dxe5 {[%emt 0:00:02] [#]} 20. Rxf6 $1 {[%emt 0:00:45][%mdl 512]} Qxf6 {[%emt 0:01:03]} 21. Rf1 {[%emt 0:00:07] Repels Qf4} Qe7 {[%emt 0:01:11]} (21... Qxf1+ $142 22. Kxf1 Rd8) 22. Qh7+ {[%emt 0:01:10]} Kf8 {[%emt 0:00:02]} 23. Qxg6 {[%emt 0:00:15]} (23. Rxf7+ Qxf7 24. Nxf7 Kxf7 $18) 23... Ra7 {[%emt 0:03:53][%cal Ba8a7,Ba7f7,Bf7f6][%mdl 32]} 24. Kh2 {[%emt 0:11:02][%cal Oc3e2] Hoping for Ne2!} (24. Rxf7+ Qxf7 25. Nxf7 Rxf7 $14) 24... Kg8 {[%emt 0:03:53]} 25. Rxf7 {[%emt 0:01:22]} ({Not} 25. Nxf7 Rf8 $18) 25... Qxf7 {[%emt 0:00:03]} 26. Nxf7 {[%emt 0:00:06]} Rxf7 {[%emt 0:00:09]} 27. Ne2 {[%emt 0:00:21]} Kf8 {[%emt 0:03:59]} 28. Ng3 {[%emt 0:01:01]} Rf6 {[%emt 0:02:07]} 29. Qg5 {[%emt 0:00:25]} Kf7 {[%emt 0:01:53]} (29... Rf2 $142 30. Nh5 Bh8 31. Qh6+ Ke7) 30. Nf5 {[%emt 0:00:20]} Bf8 {[%emt 0:01:31]} 31. Qh5+ {[%emt 0:00:09]} Rg6 {[%emt 0:03:38]} 32. Nh4 {[%emt 0:00:16][%csl LRe5,LRg6]} Bc5 {[%emt 0:00:01]} 33. Nxg6 {[%emt 0:00:24] White mates.} Rd8 {[%emt 0:00:37]} 34. Nxe5+ {[%emt 0:00:08]} Ke7 {[%emt 0:00:14]} 35. Nc6+ {[%emt 0:00:05]} Kd7 {[%emt 0:00:10]} 36. Qxc5 {[%emt 0:00:04]} Rg8 {[%emt 0:00:28]} 37. Ne5+ {[%emt 0:00:11]} Kd8 {[%emt 0:00:10]} 38. Qd6+ {[%emt 0:00:20]} Ke8 {[%emt 0:00:06]} 39. Bxe6 {[%emt 0:00:06][%csl Ge5][%cal Re6f7]} Rxg2+ {[%emt 0:00:02]} 40. Kxg2 {[%emt 0:00:06] Weighted Error Value: White=0.24 (precise) /Black=0.44.  Loses game:     	---       	Black=1      Mistake:       	---       	Black=4      Inaccurate:     	White=1     	Black=1      OK:         	White=9     	Black=2      Best:        	White=1     	Black=1      Strong:       	White=2     	---        Brilliant:      	White=1     	---} 1-0

[Event "Coimbra Queima Fitas Open 2024"]
[Site "Coimbra"]
[Date "2024.04.26"]
[Round "3.13"]
[White "Pintor, Simao Maciel Abranch"]
[Black "Pinto, Jose Joao Meireles A"]
[Result "1-0"]
[ECO "B33"]
[WhiteElo "2039"]
[BlackElo "1829"]
[Annotator "TA"]
[PlyCount "69"]
[EventDate "2024.04.23"]
[EventType "swiss"]
[EventCountry "POR"]
[SourceTitle "playchess.com"]
[Source "ChessBase"]
[SourceQuality "1"]
[TimeControl "5400+30"]

{[%evp 16,69,51,0,0,0,3,12,36,27,68,64,63,54,84,59,84,41,92,89,83,74,77,66,85,93,116,66,56,68,193,191,261,255,271,258,242,208,243,244,453,300,454,422,433,391,674,644,895,846,29995,29996,29996,29997,29997,29998]} 1. e4 {[%emt 0:00:02]} c5 {[%emt 0:12:03]} 2. Nf3 {[%emt 0:00:06]} Nc6 {[%emt 0:00:05]} 3. d4 {[%emt 0:00:04]} cxd4 {[%emt 0:00:06]} 4. Nxd4 {[%emt 0:00:03]} Nf6 {[%emt 0:00:07]} 5. Nc3 {[%emt 0:00:04]} e5 {[%emt 0:00:06]} 6. Ndb5 {[%emt 0:00:05]} d6 {[%emt 0:00:11]} 7. Bg5 {[%emt 0:00:06]} a6 {[%emt 0:00:05]} 8. Na3 {[%emt 0:00:04]} b5 {[%emt 0:00:10]} 9. Nab1 {[%emt 0:00:05]} (9. Bxf6 $14 gxf6 10. Nd5) 9... Be7 $11 {[%emt 0:00:59][%cal Bf8e7,Be7f6,Bf6g5][%mdl 32]} 10. Bxf6 {[%emt 0:00:06]} Bxf6 {[%emt 0:00:25]} 11. a4 {[%emt 0:00:06]} bxa4 {[%emt 0:04:36] The position is equal.} 12. Rxa4 {[%emt 0:01:45]} Bb7 {[%emt 0:01:40]} 13. Bc4 {[%emt 0:02:55]} O-O {[%emt 0:00:55]} 14. O-O {[%emt 0:00:46]} Bg5 {[%emt 0:04:23]} 15. Qd3 {[%emt 0:03:58][%cal Ob1a3]} a5 {[%emt 0:08:45]} 16. Nd5 {[%emt 0:00:06] Repels Nb4} Ne7 {[%emt 0:06:26]} (16... Nd4 $14) 17. Nbc3 $16 {[%emt 0:03:00] White is more active. A dynamic duo of knights.} Rc8 {[%emt 0:18:16]} 18. Rd1 {[%emt 0:05:20]} Rc5 {[%emt 0:02:32]} 19. g3 {[%emt 0:04:25]} Bc6 {[%emt 0:09:15]} 20. Ra3 {[%emt 0:02:40][%cal Ba4a3,Ba3b3,Bb3b5][%mdl 32]} Qc8 {[%emt 0:02:23]} 21. Nxe7+ {[%emt 0:09:06]} (21. h4 $16 Bxd5 22. Nxd5 (22. Bxd5 Bf6 $16) 22... Nxd5 (22... Rxc4 $2 23. Nb6 $18) 23. Bxd5) 21... Bxe7 $14 {[%emt 0:00:11]} 22. Bd5 {[%emt 0:00:10]} Rd8 {[%emt 0:05:23] Black cannot hold the game after this.} (22... Bd7 $14) 23. Rda1 $18 {[%emt 0:02:24][%cal Bd1a1,Ba1a5,Ba5a7][%mdl 32]} Qb8 {[%emt 0:10:43]} (23... Bd7 $142 24. Rxa5 Rxa5 25. Rxa5 Qb8) 24. Bxc6 {[%emt 0:14:14]} (24. Rxa5 $6 Qxb2 25. R5a3 Be8 $16) 24... Rxc6 {[%emt 0:00:07]} 25. Rb3 {[%emt 0:01:32]} ({Much less strong is} 25. Rxa5 $6 Qxb2 26. Nd5 Bf6 $18) 25... Qa7 {[%emt 0:01:44]} 26. Rb5 {[%emt 0:06:06]} Qd4 {[%emt 0:06:52]} 27. Qf3 {[%emt 0:04:36]} Rdc8 $2 {[%emt 0:02:44] [#]} (27... Rc5 28. Raxa5 (28. Rbxa5 Rxa5 29. Rxa5 Qd2 $18) 28... Rxb5 29. Rxb5 Bf6) 28. Raxa5 {[%emt 0:03:01]} Qd2 {[%emt 0:01:27]} (28... Bf6 $142 29. Rb7 Rf8) 29. Ra7 {[%emt 0:02:58]} Bf6 {[%emt 0:00:57]} 30. Rbb7 {[%emt 0:05:17]} Rxc3 $2 {[%emt 0:00:58]} (30... Rf8 31. Kg2 Rcc8) 31. bxc3 {[%emt 0:00:06]} h6 {[%emt 0:00:43]} 32. Rxf7 {[%emt 0:01:35]} Rxc3 {[%emt 0:00:22] [#]} 33. Rxg7+ $3 {[%emt 0:00:12][%mdl 512] White mates.} Kh8 {[%emt 0:00:34]} 34. Rh7+ {[%emt 0:00:32]} Kg8 {[%emt 0:00:35]} 35. Qg4+ {[%emt 0:00:21] Weighted Error Value: White=0.16 (very precise) /Black=0.90.  Mistake:       	White=1     	Black=6      Inaccurate:     	White=2     	Black=3      OK:         	White=10    	Black=3      Best:        	White=1     	---} 1-0

[Event "Coimbra Queima Fitas Open 2024"]
[Site "Coimbra"]
[Date "2024.04.26"]
[Round "3.14"]
[White "Pacetti Terra, Nicolas Marcelo"]
[Black "Paiva, Manuel Maria Fonseca"]
[Result "1-0"]
[ECO "D37"]
[WhiteElo "2019"]
[BlackElo "1807"]
[Annotator "TA"]
[PlyCount "59"]
[EventDate "2024.04.23"]
[EventType "swiss"]
[EventCountry "POR"]
[SourceTitle "playchess.com"]
[Source "ChessBase"]
[SourceQuality "1"]
[TimeControl "5400+30"]

{[%evp 9,59,6,43,35,53,38,43,40,47,43,51,65,46,33,47,23,19,19,18,-51,50,49,75,58,56,64,64,69,82,102,102,91,104,95,93,105,91,90,102,90,153,153,281,190,696,554,987,972,29986,29987,29987,29987]} 1. d4 {[%emt 0:00:03]} d5 {[%emt 0:01:17]} 2. c4 {[%emt 0:00:08]} e6 {[%emt 0:00:06]} 3. Nc3 {[%emt 0:00:05]} Nf6 {[%emt 0:00:03]} 4. Nf3 {[%emt 0:00:06]} dxc4 {[%emt 0:00:16]} 5. e4 {[%emt 0:02:33][%cal Be2e4,Be4e5][%mdl 32]} b5 {[%emt 0:00:03]} 6. e5 {[%emt 0:00:06]} Nd5 {[%emt 0:00:09]} 7. Nxb5 {[%emt 0:00:07]} Nb6 {[%emt 0:00:02]} 8. Be2 {[%emt 0:00:50] White is slightly better.} Nc6 {[%emt 0:00:04][%cal Bb8c6,Bc6b4,Bb4d3][%mdl 32]} 9. O-O {[%emt 0:00:40]} Be7 {[%emt 0:00:02]} 10. Qd2 {[%emt 0:04:34]} O-O {[%emt 0:00:17]} 11. Qf4 {[%emt 0:00:06]} Bb7 {[%emt 0:05:36]} 12. Qg3 {[%emt 0:03:43] aiming for Bh6.} Kh8 $1 {[%emt 0:00:09]} 13. Be3 {[%emt 0:03:00]} Nb4 {[%emt 0:03:40]} 14. Na3 {[%emt 0:10:09]} ({White must play} 14. Nd2 $1 $11) 14... Bd5 {[%emt 0:07:24]} ({Better is} 14... Ba6 $1 $15) 15. Nd2 $14 {[%emt 0:04:34]} Nd3 {[%emt 0:20:19] [#]} 16. Naxc4 {[%emt 0:06:32]} Nxc4 {[%emt 0:01:07]} 17. Bxd3 {[%emt 0:00:07]} Nxb2 {[%emt 0:01:54]} 18. Bc2 {[%emt 0:02:31]} Nc4 {[%emt 0:01:33] [#]} 19. Bh6 $1 {[%emt 0:01:26]} gxh6 {[%emt 0:14:57]} 20. Qd3 $1 $40 {[%emt 0:00:08][%csl Gc2,LRc4,LRh7][%cal Rd3h7][%mdl 128] White is out for blood.} f5 {[%emt 0:00:05]} 21. exf6 {[%emt 0:01:19][%csl Gc2][%cal Rd3h7]} (21. Nxc4 $6 Be4 22. Qc3 Bxc2 23. Qxc2 Qxd4 $11) 21... Rf7 {[%emt 0:00:01][%cal Od8g8] White must now prevent ...Qg8!} 22. fxe7 {[%emt 0:00:34]} Qg8 {[%emt 0:00:10][%csl Gd5][%cal Rg8g2]} 23. g3 {[%emt 0:01:15] Chess con chili.} (23. Nxc4 $2 Qxg2#) 23... Nxd2 {[%emt 0:02:58]} 24. Qxd2 {[%emt 0:00:06]} Qg4 {[%emt 0:01:52] [#]} (24... Qg5 $142 25. Qd3 Qxe7) 25. Bb3 $1 $16 {[%emt 0:15:38]} (25. Qxh6 Qf3 26. e8=Q+ Rxe8) 25... Be4 {[%emt 0:12:51]} (25... Qg5 $16 {is a better defense.} 26. f4 (26. Qxg5 hxg5 27. Rfe1 Bxb3 $16) 26... Qxe7 27. Bxd5 exd5) 26. Qe3 {[%emt 0:11:50] Hoping for f3.} (26. Qxh6 Qf3 27. e8=Q+ Rxe8) 26... Rg8 $2 {[%emt 0:16:34]} (26... Qf3 27. Qxf3 (27. Bxe6 $2 Qh1#) 27... Bxf3) 27. f3 {[%emt 0:03:55]} (27. Qxh6 $2 {gets mated.} Qf3 (27... Rxe7 $2 {loses.} 28. f3 $18) (27... Rxe7 $2 {perishes.} 28. f3 $18)) 27... Qh3 {[%emt 0:05:35][%cal Og8g3] ( -> ...Rxg3+!)} 28. fxe4 {[%emt 0:00:17]} Rfg7 29. Rf8 {[%emt 0:00:58]} Rxe7 {[%emt 0:01:10]} 30. Qf4 {[%emt 0:00:25] Weighted Error Value: White=0.23 (precise) /Black=0.72.  Mistake:       	White=1     	Black=4      Inaccurate:     	White=1     	Black=3      OK:         	White=5     	Black=5      Best:        	White=6     	Black=1      Strong:       	---       	Black=1      Brilliant:      	White=1     	---} 1-0